fUSD/lending_fUSD_20250213
["ID","MTS","AMOUNT","RATE_DAILY","PERIOD"]
[352950161,1739458247505,-500.0,0.00014101,2]
[352950162,1739458247517,-850.64,0.00014101,2]
[352950163,1739458247527,-500.0,0.00014101,2]
[352950164,1739458247538,-569.64,0.00014101,2]
[352950165,1739458247549,-708.71,0.00014101,2]
[352950166,1739458247559,-258.72696342,0.00014101,2]
[352950167,1739458247569,-500.0,0.00014101,2]
[352950168,1739458247581,-571.46,0.00014101,2]
[352950169,1739458247591,-500.0,0.00014101,2]
[352950170,1739458247601,-500.0,0.00014101,2]
[352950171,1739458247611,-500.0,0.00014101,2]
[352950172,1739458247621,-500.0,0.00014101,2]
[352950173,1739458247631,-500.0,0.00014101,2]
[352950174,1739458247640,-500.0,0.00014101,2]
[352950175,1739458247650,-746.19,0.00014101,2]
[352950176,1739458247660,-500.0,0.00014101,2]
[352950177,1739458247669,-500.0,0.00014101,2]
[352950178,1739458247680,-516.39136863,0.00014101,2]
[352950179,1739458247689,-500.0,0.00014101,2]
[352950180,1739458247699,-500.0,0.00014101,2]
[352950181,1739458247709,-500.0,0.00014101,2]
[352950182,1739458247718,-500.0,0.00014101,2]
[352950183,1739458247728,-500.0,0.00014101,2]
[352950184,1739458247738,-500.0,0.00014101,2]
[352950185,1739458247749,-816.12,0.00014101,2]
[352950186,1739458247759,-500.0,0.00014101,2]
[352950187,1739458247769,-500.0,0.00014101,2]
[352950188,1739458247780,-500.0,0.00014101,2]
[352950189,1739458247790,-500.0,0.00014101,2]
[352950190,1739458247799,-500.0,0.00014101,2]
[352950191,1739458247809,-500.0,0.00014101,2]
[352950192,1739458247819,-500.0,0.00014101,2]
[352950193,1739458247831,-500.0,0.00014101,2]
[352950194,1739458247841,-500.0,0.00014101,2]
[352950195,1739458247852,-747.04,0.00014101,2]
[352950196,1739458247863,-500.0,0.00014101,2]
[352950197,1739458247873,-500.0,0.00014101,2]
[352950198,1739458247884,-752.89,0.00014101,2]
[352950199,1739458247897,-1200.0,0.00014101,2]
[352950200,1739458247907,-500.0,0.00014101,2]
[352950201,1739458247923,-500.0,0.00014101,2]
[352950202,1739458247935,-500.0,0.00014101,2]
[352950203,1739458247946,-500.0,0.00014101,2]
[352950204,1739458247956,-500.0,0.00014101,2]
[352950205,1739458247967,-500.0,0.00014101,2]
[352950206,1739458247979,-500.0,0.00014101,2]
[352950207,1739458247989,-519.75306551,0.00014101,2]
[352950208,1739458247999,-500.0,0.00014101,2]
[352950209,1739458248009,-300.65222773,0.00014101,2]
[352950210,1739458248019,-1090.56,0.00014101,2]
[352950211,1739458248029,-1519.26,0.00014101,2]
[352950212,1739458248039,-503.99618225,0.00014101,2]
[352950213,1739458248050,-500.0,0.00014101,2]
[352950214,1739458248060,-500.0,0.00014101,2]
[352950215,1739458248070,-500.0,0.00014101,2]
[352950216,1739458248081,-500.0,0.00014101,2]
[352950217,1739458248092,-500.0,0.00014101,2]
[352950218,1739458248102,-500.0,0.00014101,2]
[352950219,1739458248113,-500.0,0.00014101,2]
[352950220,1739458248123,-500.0,0.00014101,2]
[352950221,1739458248133,-500.0,0.00014101,2]
[352950222,1739458248144,-964.68,0.00014101,2]
[352950223,1739458248155,-2369.49,0.00014101,2]
[352950224,1739458248165,-500.0,0.00014101,2]
[352950225,1739458248175,-500.0,0.00014101,2]
[352950226,1739458248185,-500.0,0.00014101,2]
[352950227,1739458248195,-500.78483877,0.00014101,2]
[352950228,1739458248206,-508.80505818,0.00014101,2]
[352950229,1739458248216,-500.0,0.00014101,2]
[352950230,1739458248227,-500.0,0.00014101,2]
[352950231,1739458248237,-500.0,0.00014101,2]
[352950232,1739458248248,-995.18,0.00014101,2]
[352950233,1739458248259,-500.0,0.00014101,2]
[352950234,1739458248270,-500.0,0.00014101,2]
[352950235,1739458248282,-634.43,0.00014101,2]
[352950236,1739458248293,-518.37,0.00014101,2]
[352950237,1739458248304,-500.0,0.00014101,2]
[352950238,1739458248315,-500.0,0.00014101,2]
[352950239,1739458248326,-500.0,0.00014101,2]
[352950240,1739458248340,-437.6093853,0.00014101,2]
[352950241,1739458248351,-500.0,0.00014101,2]
[352950242,1739458248362,-606.68,0.00014101,2]
[352950243,1739458248373,-500.0,0.00014101,2]
[352950244,1739458248385,-745.35,0.00014101,2]
[352950245,1739458248396,-500.0,0.00014101,2]
[352950246,1739458248407,-955.04,0.00014101,2]
[352950247,1739458248418,-655.59,0.00014101,2]
[352950248,1739458248428,-500.0,0.00014101,2]
[352950249,1739458248438,-500.0,0.00014101,2]
[352950250,1739458248653,-507.58141143,0.00014101,2]
[352950251,1739458248663,-500.0,0.00014101,2]
[352950252,1739458248674,-961.42,0.00014101,2]
[352950253,1739458248684,-1211.21,0.00014101,2]
[352950254,1739458248695,-570.77,0.00014101,2]
[352950255,1739458248706,-741.09,0.00014101,2]
[352950256,1739458248716,-500.0,0.00014101,2]
[352950257,1739458248727,-500.0,0.00014101,2]
[352950258,1739458248737,-500.0,0.00014101,2]
[352950259,1739458248747,-1689.64,0.00014101,2]
[352950260,1739458248758,-500.0,0.00014101,2]
[352950261,1739458248769,-500.0,0.00014101,2]
[352950262,1739458248779,-500.0,0.00014101,2]
[352950263,1739458248789,-2614.96,0.00014101,2]
[352950264,1739458248800,-500.0,0.00014101,2]
[352950265,1739458248811,-500.0,0.00014101,2]
[352950266,1739458248822,-500.0,0.00014101,2]
[352950267,1739458248836,-502.93413517,0.00014101,2]
[352950268,1739458248846,-500.0,0.00014101,2]
[352950269,1739458248856,-500.0,0.00014101,2]
[352950270,1739458248867,-500.0,0.00014101,2]
[352950271,1739458248878,-500.0,0.00014101,2]
[352950272,1739458248890,-500.0,0.00014101,2]
[352950273,1739458248903,-885.06,0.00014101,2]
[352950274,1739458248914,-500.0,0.00014101,2]
[352950275,1739458248925,-500.0,0.00014101,2]
[352950276,1739458248935,-500.0,0.00014101,2]
[352950277,1739458248946,-500.0,0.00014101,2]
[352950278,1739458248956,-630.39,0.00014101,2]
[352950279,1739458248966,-500.0,0.00014101,2]
[352950280,1739458248976,-501.99429771,0.00014101,2]
[352950281,1739458248988,-892.78,0.00014101,2]
[352950282,1739458248999,-1754.03,0.00014101,2]
[352950283,1739458249009,-1542.19,0.00014101,2]
[352950284,1739458249020,-500.0,0.00014101,2]
[352950285,1739458249030,-522.0,0.00014101,2]
[352950286,1739458249040,-649.58,0.00014101,2]
[352950287,1739458249050,-567.27,0.00014101,2]
[352950288,1739458249059,-500.0,0.00014101,2]
[352950289,1739458249070,-500.0,0.00014101,2]
[352950290,1739458249080,-942.81,0.00014101,2]
[352950291,1739458249092,-1160.84,0.00014101,2]
[352950292,1739458249103,-1007.62,0.00014101,2]
[352950293,1739458249114,-1210.72,0.00014101,2]
[352950294,1739458249124,-500.0,0.00014101,2]
[352950295,1739458249135,-503.39186551,0.00014101,2]
[352950296,1739458249146,-500.0,0.00014101,2]
[352950297,1739458249156,-2093.05,0.00014101,2]
[352950298,1739458249167,-500.0,0.00014101,2]
[352950299,1739458249177,-900.7,0.00014101,2]
[352950300,1739458249187,-1181.84,0.00014101,2]
[352950301,1739458249198,-500.0,0.00014101,2]
[352950302,1739458249208,-681.24,0.00014101,2]
[352950303,1739458249219,-500.0,0.00014101,7]
[352950304,1739458249230,-822.54,0.00014101,2]
[352950305,1739458249240,-1418.47,0.00014101,2]
[352950306,1739458249250,-977.3,0.00014101,2]
[352950307,1739458249261,-1006.62,0.00014101,2]
[352950308,1739458249271,-500.0,0.00014101,2]
[352950309,1739458249282,-439.94,0.0001411,2]
[352950310,1739458249292,-775.49,0.0001411,2]
[352950311,1739458249302,-775.49,0.0001411,2]
[352950312,1739458249313,-439.94,0.0001411,2]
[352950313,1739458249323,-439.94,0.0001411,2]
[352950314,1739458249334,-775.49,0.0001411,2]
[352950315,1739458249344,-439.94,0.0001411,2]
[352950316,1739458249354,-775.49,0.0001411,2]
[352950317,1739458249364,-439.94,0.0001411,2]
[352950318,1739458249374,-274.06,0.0001411,2]
[352950319,1739458249384,-472.13398,0.0001411,2]
[352950320,1739458249394,-638.38,0.00014114,2]
[352950321,1739458249404,-610.3,0.00014114,2]
[352950322,1739458249415,-1088.5,0.00014114,2]
[352950323,1739458249424,-500.0,0.00014114,2]
[352950324,1739458249435,-525.69946484,0.00014114,2]
[352950325,1739458249446,-500.0,0.00014114,2]
[352950326,1739458249456,-500.0,0.00014114,2]
[352950327,1739458249466,-500.0,0.00014114,2]
[352950328,1739458249475,-500.0,0.00014114,2]
[352950329,1739458249484,-825.02,0.00014114,2]
[352950330,1739458249494,-500.0,0.00014114,2]
[352950331,1739458249504,-824.99,0.00014114,2]
[352950332,1739458249513,-500.0,0.00014114,2]
[352950333,1739458249523,-500.0,0.00014114,2]
[352950334,1739458249533,-720.89,0.00014114,2]
[352950335,1739458249542,-500.0,0.00014114,2]
[352950336,1739458249551,-940.68,0.00014114,2]
[352950337,1739458249561,-690.19,0.00014114,2]
[352950338,1739458249571,-500.0,0.00014114,2]
[352950339,1739458249580,-500.0,0.00014114,2]
[352950340,1739458249592,-500.0,0.00014114,2]
[352950341,1739458249604,-500.0,0.00014114,2]
[352950342,1739458249614,-500.0,0.00014114,2]
[352950343,1739458249623,-500.0,0.00014114,2]
[352950344,1739458249633,-500.0,0.00014114,2]
[352950345,1739458249644,-500.0,0.00014114,2]
[352950346,1739458249654,-969.14,0.00014114,2]
[352950347,1739458249663,-500.0,0.00014114,2]
[352950348,1739458249673,-750.4,0.00014114,2]
[352950349,1739458249682,-523.44,0.00014114,2]
[352950350,1739458249691,-500.0,0.00014114,2]
[352950351,1739458249702,-500.0,0.00014114,2]
[352950352,1739458249712,-500.0,0.00014114,2]
[352950353,1739458249722,-500.0,0.00014114,2]
[352950354,1739458249731,-500.0,0.00014114,2]
[352950355,1739458249741,-500.0,0.00014114,2]
[352950356,1739458249751,-500.0,0.00014114,2]
[352950357,1739458249760,-500.0,0.00014114,2]
[352950358,1739458249770,-500.0,0.00014114,2]
[352950359,1739458249779,-500.0,0.00014114,2]
[352950360,1739458249788,-931.62,0.00014114,2]
[352950361,1739458249798,-500.0,0.00014114,2]
[352950362,1739458249808,-539.06122692,0.00014114,2]
[352950363,1739458249817,-500.0,0.00014114,2]
[352950364,1739458249827,-500.0,0.00014114,2]
[352950365,1739458249837,-699.55,0.00014114,2]
[352950366,1739458249846,-500.0,0.00014114,2]
[352950367,1739458249856,-500.0,0.00014114,2]
[352950368,1739458249866,-500.0,0.00014114,2]
[352950369,1739458249875,-500.0,0.00014114,2]
[352950370,1739458249885,-500.0,0.00014114,2]
[352950371,1739458249895,-500.0,0.00014114,2]
[352950372,1739458249908,-500.0,0.00014114,2]
[352950373,1739458249918,-500.0,0.00014114,2]
[352950374,1739458249927,-609.82,0.00014114,2]
[352950375,1739458249938,-759.45,0.00014114,2]
[352950376,1739458249947,-500.0,0.00014114,2]
[352950377,1739458249957,-549.64,0.00014114,2]
[352950378,1739458249967,-500.0,0.00014114,2]
[352950379,1739458249977,-504.0029586,0.00014114,2]
[352950380,1739458249986,-500.0,0.00014114,2]
[352950381,1739458249996,-1002.73,0.00014114,2]
[352950382,1739458250006,-234.5353464,0.00014114,2]
[352950383,1739458250016,-500.0,0.00014114,2]
[352950384,1739458250026,-500.0,0.00014114,2]
[352950385,1739458250035,-500.0,0.00014114,2]
[352950386,1739458250044,-500.0,0.00014114,2]
[352950387,1739458250054,-500.0,0.00014114,2]
[352950388,1739458250068,-500.0,0.00014114,2]
[352950389,1739458250092,-500.0,0.00014114,2]
[352950390,1739458250102,-500.0,0.00014114,2]
[352950391,1739458250111,-500.0,0.00014114,2]
[352950392,1739458250122,-671.71,0.00014114,2]
[352950393,1739458250136,-500.0,0.00014114,2]
[352950394,1739458250145,-500.0,0.00014114,2]
[352950395,1739458250155,-500.0,0.00014114,2]
[352950396,1739458250164,-503.57545854,0.00014114,2]
[352950397,1739458250174,-613.91,0.00014114,2]
[352950398,1739458250183,-1061.75,0.00014114,2]
[352950399,1739458250192,-516.54,0.00014114,2]
[352950400,1739458250201,-500.0,0.00014114,2]
[352950401,1739458250211,-500.0,0.00014114,2]
[352950402,1739458250220,-518.00187235,0.00014114,2]
[352950403,1739458250230,-500.0,0.00014114,2]
[352950404,1739458250239,-500.0,0.00014114,2]
[352950405,1739458250248,-500.0,0.00014114,2]
[352950406,1739458250258,-1013.81,0.00014114,2]
[352950407,1739458250267,-1811.11,0.00014115,2]
[352950408,1739458250276,-1438.44,0.00014115,2]
[352950409,1739458250285,-500.0,0.00014115,2]
[352950410,1739458250294,-500.0,0.00014115,2]
[352950411,1739458250304,-529.29,0.00014115,2]
[352950412,1739458250314,-701.01,0.00014115,2]
[352950413,1739458250323,-500.0,0.00014115,2]
[352950414,1739458250334,-1382.04,0.00014115,2]
[352950415,1739458250344,-536.99,0.00014115,2]
[352950416,1739458250353,-500.0,0.00014115,2]
[352950417,1739458250363,-616.9,0.00014115,2]
[352950418,1739458250373,-500.0,0.00014115,2]
[352950419,1739458250382,-1944.55,0.00014115,2]
[352950420,1739458250392,-1475.55,0.00014115,2]
[352950421,1739458250402,-972.14,0.00014115,2]
[352950422,1739458250411,-1840.67,0.00014115,2]
[352950423,1739458250421,-1863.87,0.00014115,2]
[352950424,1739458250431,-500.0,0.00014115,2]
[352950425,1739458250440,-500.0,0.00014115,2]
[352950426,1739458250449,-569.0,0.00014115,2]
[352950427,1739458250459,-976.52,0.00014115,2]
[352950428,1739458250468,-517.91972292,0.00014115,2]
[352950429,1739458250478,-829.55,0.00014115,2]
[352950430,1739458250487,-819.53,0.00014115,2]
[352950431,1739458250497,-1081.8,0.00014115,2]
[352950432,1739458250506,-500.0,0.00014115,2]
[352950433,1739458250515,-807.33,0.00014115,2]
[352950434,1739458250525,-500.0,0.00014115,2]
[352950435,1739458250534,-538.36711023,0.00014115,2]
[352950436,1739458250544,-635.12,0.00014115,2]
[352950437,1739458250553,-1401.34,0.00014115,2]
[352950438,1739458250562,-949.72,0.00014115,2]
[352950439,1739458250572,-500.0,0.00014115,2]
[352950440,1739458250583,-500.0,0.00014115,2]
[352950441,1739458250593,-525.97,0.00014115,2]
[352950442,1739458250602,-975.43,0.00014115,2]
[352950443,1739458250612,-1693.57,0.00014115,2]
[352950444,1739458250621,-500.0,0.00014115,2]
[352950445,1739458250631,-500.0,0.00014115,2]
[352950446,1739458250640,-920.13,0.00014115,2]
[352950447,1739458250649,-520.86,0.00014115,2]
[352950448,1739458250659,-2062.75,0.00014115,2]
[352950449,1739458250668,-622.47,0.00014115,2]
[352950450,1739458250678,-500.0,0.00014115,2]
[352950451,1739458250687,-500.0,0.00014115,2]
[352950452,1739458250697,-500.0,0.00014115,2]
[352950453,1739458250706,-696.97,0.00014115,2]
[352950454,1739458250715,-500.0,0.00014115,2]
[352950455,1739458250725,-500.0,0.00014115,2]
[352950456,1739458250734,-1006.5,0.00014115,2]
[352950457,1739458250743,-994.47,0.00014115,2]
[352950458,1739458250753,-500.0,0.00014115,2]
[352950459,1739458250762,-770.09,0.00014115,2]
[352950460,1739458250772,-1281.95,0.00014115,2]
[352950461,1739458250781,-1035.76,0.00014115,2]
[352950462,1739458250791,-500.0,0.00014115,2]
[352950463,1739458250800,-2832.41,0.00014115,2]
[352950464,1739458250809,-1999.46,0.00014115,2]
[352950465,1739458250818,-821.08,0.00014115,2]
[352950466,1739458250828,-1005.78,0.00014115,2]
[352950467,1739458250839,-500.0,0.00014115,2]
[352950468,1739458250849,-500.0,0.00014115,2]
[352950469,1739458250859,-500.0,0.00014115,2]
[352950470,1739458250868,-1264.27,0.00014115,2]
[352950471,1739458250878,-1287.35,0.00014115,2]
[352950472,1739458250888,-349.71723787,0.00014115,2]
[352950473,1739458250898,-3207.76,0.00014115,2]
[352950474,1739458250910,-1958.15,0.00014115,2]
[352950475,1739458250919,-500.0,0.00014115,2]
[352950476,1739458250929,-815.36,0.00014115,2]
[352950477,1739458250938,-1143.5,0.00014115,2]
[352950478,1739458250948,-502.69,0.00014115,2]
[352950479,1739458250957,-500.0,0.00014115,2]
[352950480,1739458250967,-2261.06,0.00014115,2]
[352950481,1739458250977,-500.0,0.00014115,2]
[352950482,1739458250986,-1942.47,0.00014115,2]
[352950483,1739458250996,-3197.41,0.00014115,2]
[352950484,1739458251005,-500.0,0.00014115,2]
[352950485,1739458251014,-1665.64,0.00014115,2]
[352950486,1739458251024,-797.37,0.00014115,2]
[352950487,1739458251033,-2115.88,0.00014115,2]
[352950488,1739458251043,-500.0,0.00014115,2]
[352950489,1739458251052,-1763.39,0.00014115,2]
[352950490,1739458251061,-3000.88,0.00014115,2]
[352950491,1739458251071,-719.21,0.00014115,2]
[352950492,1739458251080,-1494.07,0.00014115,2]
[352950493,1739458251240,-2122.71,0.00014115,2]
[352950494,1739458251250,-500.0,0.00014115,2]
[352950495,1739458251258,-3465.3,0.00014115,2]
[352950496,1739458251267,-500.0,0.00014115,2]
[352950497,1739458251275,-1153.75,0.00014115,2]
[352950498,1739458251284,-3740.45,0.00014115,2]
[352950499,1739458251293,-1137.59,0.00014115,2]
[352950500,1739458251302,-2002.29,0.00014115,2]
[352950501,1739458251312,-500.0,0.00014115,2]
[352950502,1739458251321,-3806.5,0.00014115,2]
[352950503,1739458251330,-5466.6,0.00014115,2]
[352950504,1739458251341,-2295.63,0.00014115,2]
[352950505,1739458251350,-1661.74,0.00014115,2]
[352950506,1739458251360,-1965.14,0.00014115,2]
[352950507,1739458251370,-4305.33,0.00014115,2]
[352950508,1739458251379,-730.91,0.00014115,2]
[352950509,1739458251389,-213.7030357,0.00014123,2]
[352950510,1739458251403,-213.7030357,0.00014146,2]
[352950511,1739458251412,-472.13399,0.0001415,2]
[352950512,1739458251422,-1466.66,0.00014164,2]
[352950513,1739458251431,-1219.76,0.00014164,2]
[352950514,1739458251441,-4554.65,0.00014164,2]
[352950515,1739458251450,-1865.32,0.00014164,2]
[352950516,1739458251459,-3756.2,0.00014164,2]
[352950517,1739458251468,-2591.291679,0.00014164,2]
[352950518,1739458251477,-2804.94,0.00014164,2]
[352950519,1739458251487,-159.37511,0.00014164,2]
[352950520,1739458251496,-2365.34,0.00014164,2]
[352950521,1739458251505,-2022.69,0.00014164,2]
[352950522,1739458251515,-3650.99,0.00014164,2]
[352950523,1739458251524,-1561.75,0.00014164,2]
[352950524,1739458251533,-808.27,0.00014164,2]
[352950525,1739458251543,-1201.098903,0.00014164,2]
[352950526,1739458251552,-3214.41,0.00014164,2]
[352950527,1739458251562,-1453.09,0.00014164,2]
[352950528,1739458251571,-1268.89,0.00014164,2]
[352950529,1739458251581,-2704.44,0.00014164,2]
[352950530,1739458251592,-1078.53,0.00014164,2]
[352950531,1739458251602,-4254.21,0.00014164,2]
[352950532,1739458251612,-2505.56,0.00014164,2]
[352950533,1739458251621,-500.0,0.00014164,2]
[352950534,1739458251632,-2787.12,0.00014164,2]
[352950535,1739458251642,-1997.03,0.00014164,2]
[352950536,1739458251652,-3732.74,0.00014164,2]
[352950537,1739458251661,-2182.85,0.00014164,2]
[352950538,1739458251671,-3581.2,0.00014164,2]
[352950539,1739458251680,-3044.05,0.00014164,2]
[352950540,1739458251690,-3584.02,0.00014164,2]
[352950541,1739458251700,-500.0,0.00014164,2]
[352950542,1739458251709,-3468.6,0.00014164,2]
[352950543,1739458251719,-500.0,0.00014164,2]
[352950544,1739458251728,-3571.61,0.00014164,2]
[352950545,1739458251738,-3419.78,0.00014164,2]
[352950546,1739458251748,-152.634274,0.00014164,2]
[352950547,1739458251758,-2528.35,0.00014164,2]
[352950548,1739458251768,-500.0,0.00014164,2]
[352950549,1739458251778,-1926.9,0.00014164,2]
[352950550,1739458251788,-2858.48,0.00014164,2]
[352950551,1739458251798,-3218.37,0.00014164,2]
[352950552,1739458251808,-3327.68,0.00014164,2]
[352950553,1739458251818,-3472.11,0.00014164,2]
[352950554,1739458251827,-4555.94,0.00014164,2]
[352950555,1739458251838,-3715.07,0.00014164,2]
[352950556,1739458251848,-10441.72,0.00014164,2]
[352950557,1739458251858,-4969.47,0.00014164,2]
[352950558,1739458251867,-4071.49,0.00014164,2]
[352950559,1739458251876,-3068.04,0.00014164,2]
[352950560,1739458251886,-500.0,0.00014164,2]
[352950561,1739458251897,-7777.74,0.00014164,2]
[352950562,1739458251909,-2738.67,0.00014164,2]
[352950563,1739458251919,-500.0,0.00014164,2]
[352950564,1739458251932,-2861.21,0.00014164,2]
[352950565,1739458251942,-500.0,0.00014164,2]
[352950566,1739458251951,-2144.63,0.00014164,2]
[352950567,1739458251961,-500.0,0.00014164,2]
[352950568,1739458251970,-3838.03,0.00014164,2]
[352950569,1739458251980,-5453.93,0.00014164,2]
[352950570,1739458251990,-500.0,0.00014164,2]
[352950571,1739458251999,-1448.08,0.00014164,2]
[352950572,1739458252008,-2326.24,0.00014164,2]
[352950573,1739458252018,-794.42,0.00014164,2]
[352950574,1739458252027,-4497.87,0.00014164,2]
[352950575,1739458252037,-362.74,0.00014164,2]
[352950576,1739458252047,-500.0,0.00014164,2]
[352950577,1739458252056,-28808.0,0.00014164,2]
[352950578,1739458252066,-500.08582552,0.00014173,2]
[352950579,1739458252075,-500.54045557,0.00014173,2]
[352950580,1739458252086,-164.86838918,0.00014173,2]
[352950581,1739458252096,-500.0,0.00014173,2]
[352950582,1739458252106,-503.16108824,0.00014173,2]
[352950583,1739458252115,-162.50604021,0.00014173,2]
[352950584,1739458252125,-161.45642954,0.00014173,2]
[352950585,1739458252135,-500.0,0.00014173,2]
[352950586,1739458252145,-306.87999278,0.00014173,2]
[352950587,1739458252155,-472.13398,0.0001418,2]
[352950588,1739458252165,-5045.5,0.00014182,2]
[352950589,1739458252175,-897.86,0.00014182,2]
[352950590,1739458252184,-3157.53,0.00014182,2]
[352950591,1739458252194,-3209.05,0.00014182,2]
[352950592,1739458252204,-767.12,0.00014182,2]
[352950593,1739458252214,-5217.07,0.00014182,2]
[352950594,1739458252223,-727.46,0.00014182,2]
[352950595,1739458252238,-3867.49,0.00014182,2]
[352950596,1739458252248,-994.7,0.00014182,2]
[352950597,1739458252258,-2920.06,0.00014182,2]
[352950598,1739458252268,-1445.9,0.00014182,2]
[352950599,1739458252278,-3893.08,0.00014182,2]
[352950600,1739458252287,-502.81334969,0.00014182,2]
[352950601,1739458252298,-2810.02,0.00014182,2]
[352950602,1739458252307,-6501.95,0.00014182,2]
[352950603,1739458252317,-1423.03,0.00014182,2]
[352950604,1739458252327,-1706.19,0.00014182,2]
[352950605,1739458252339,-2914.01,0.00014182,2]
[352950606,1739458252350,-500.0,0.00014182,2]
[352950607,1739458252366,-854.47,0.00014182,2]
[352950608,1739458252376,-3038.93,0.00014182,2]
[352950609,1739458252385,-3198.28,0.00014182,2]
[352950610,1739458252395,-500.0,0.00014182,2]
[352950611,1739458252405,-500.0,0.00014182,2]
[352950612,1739458252416,-3359.99,0.00014182,2]
[352950613,1739458252426,-3698.02,0.00014182,2]
[352950614,1739458252436,-4738.33,0.00014182,2]
[352950615,1739458252445,-11241.63,0.00014182,2]
[352950616,1739458252455,-500.0,0.00014183,2]
[352950617,1739458252465,-500.0,0.00014183,2]
[352950618,1739458252475,-500.0,0.00014183,2]
[352950619,1739458252484,-500.0,0.00014183,2]
[352950620,1739458252494,-500.0,0.00014183,2]
[352950621,1739458252503,-500.0,0.00014183,2]
[352950622,1739458252513,-850.64,0.00014183,2]
[352950623,1739458252523,-500.0,0.00014183,2]
[352950624,1739458252533,-569.64,0.00014183,2]
[352950625,1739458252542,-708.71,0.00014183,2]
[352950626,1739458252552,-571.46,0.00014183,2]
[352950627,1739458252562,-500.0,0.00014183,2]
[352950628,1739458252572,-500.0,0.00014183,2]
[352950629,1739458252582,-500.0,0.00014183,2]
[352950630,1739458252594,-500.0,0.00014183,2]
[352950631,1739458252604,-500.0,0.00014183,2]
[352950632,1739458252615,-500.0,0.00014183,2]
[352950633,1739458252625,-746.19,0.00014183,2]
[352950634,1739458252635,-500.0,0.00014183,2]
[352950635,1739458252645,-500.0,0.00014183,2]
[352950636,1739458252655,-500.0,0.00014183,2]
[352950637,1739458252665,-543.8250078,0.00014183,2]
[352950638,1739458252676,-500.0,0.00014183,2]
[352950639,1739458252686,-500.0,0.00014183,2]
[352950640,1739458252695,-816.12,0.00014183,2]
[352950641,1739458252705,-500.0,0.00014183,2]
[352950642,1739458252715,-517.97418473,0.00014183,2]
[352950643,1739458252725,-500.0,0.00014183,2]
[352950644,1739458252735,-500.0,0.00014183,2]
[352950645,1739458252746,-500.0,0.00014183,2]
[352950646,1739458252755,-500.0,0.00014183,2]
[352950647,1739458252765,-500.0,0.00014183,2]
[352950648,1739458252774,-505.75739179,0.00014183,2]
[352950649,1739458252792,-747.04,0.00014183,2]
[352950650,1739458252805,-500.0,0.00014183,2]
[352950651,1739458252815,-752.89,0.00014183,2]
[352950652,1739458252825,-1200.0,0.00014183,2]
[352950653,1739458252837,-500.0,0.00014183,2]
[352950654,1739458252848,-378.10504061,0.00014183,2]
[352950655,1739458252858,-508.6420564,0.00014183,2]
[352950656,1739458252868,-500.0,0.00014183,2]
[352950657,1739458252878,-500.0,0.00014183,2]
[352950658,1739458252888,-528.94678679,0.00014183,2]
[352950659,1739458252904,-500.0,0.00014183,2]
[352950660,1739458252913,-1090.56,0.00014183,2]